bitfinex/quotes_ETHUSD_20241023
["timestamp","ask_amount","ask_price","bid_price","bid_amount"]
[1729711753963,3.99492,2503.2,2502.7,3.99558]
[1729711754169,3.99492,2503.2,2502.8,3.99548]
[1729711754667,3.99492,2503.2,2502.7,3.99558]
[1729711755584,3.99511,2503.1,2502.5,3.99585]
[1729711755744,3.99511,2503.1,2502.6,3.99569]
[1729711755951,3.99511,2503.1,2502.7,3.99566]
[1729711756679,3.99492,2503.2,2502.7,3.99566]
[1729711757053,3.99512,2503.1,2502.7,3.99566]
[1729711757275,3.99512,2503.1,2502.6,3.99583]
[1729711757479,3.99511,2503.1,2502.5,5.03026029]
[1729711757687,3.99537,2502.9,2502.5,5.03026029]
[1729711757992,3.99511,2503.1,2502.6,3.0]
[1729711758147,3.99521,2503.0,2502.6,6.99582]
[1729711758485,3.99555,2502.8,2502.3,4.57]
[1729711758730,3.99555,2502.8,2502.3,8.56631]
[1729711758900,3.9957,2502.7,2502.3,8.56631]
[1729711759185,4.08209741,2502.7,2502.3,4.57]
[1729711759390,3.99586,2502.6,2502.3,4.57]
[1729711759551,4.08201741,2502.7,2502.3,4.57]
[1729711759746,3.9957,2502.7,2502.3,4.57]
[1729711760048,0.08631741,2502.6,2502.3,4.57]
[1729711760258,4.08215741,2502.6,2502.3,3.0]
[1729711760559,3.99616,2502.4,2502.0,1.6241]
[1729711761154,0.08631741,2502.3,2502.0,1.6241]
[1729711761350,0.08631741,2502.3,2502.0,5.62088]
[1729711761688,0.08631741,2502.2,2502.0,9.61754]
[1729711761851,3.99602,2502.5,2502.0,11.36317283]
[1729711762184,3.99602,2502.5,2502.0,4.6241]
[1729711762185,4.08257741,2502.4,2502.0,4.6241]
[1729711762595,4.08257741,2502.4,2502.0,3.0]
[1729711762805,3.99665,2502.1,2501.7,4.6097]
[1729711762964,3.99665,2502.1,2501.6,3.99732]
[1729711763164,0.08600063,2502.0,2501.6,3.99732]
[1729711763476,4.08288063,2502.0,2501.5,5.60723]
[1729711763999,0.08600063,2502.0,2501.6,3.99737]
[1729711764866,3.99701,2501.9,2501.5,5.60729]
[1729711765297,0.08518591,2501.8,2501.5,5.60729]
[1729711765504,0.08518591,2501.8,2501.6,3.99736]
[1729711765659,5.63835,2502.1,2501.6,3.99736]
[1729711765860,0.08511046,2502.0,2501.7,3.99712]
[1729711766063,0.08511046,2502.0,2501.6,1.33467659]
[1729711766064,0.08511046,2502.0,2501.9,5.63976]
[1729711766364,3.99599,2502.6,2502.1,3.99661]
[1729711766583,3.99608,2502.5,2502.0,3.99678]
[1729711767100,3.99608,2502.5,2502.0,7.99351]
[1729711767403,1.5756,2502.8,2501.9,5.63975]
[1729711767404,3.99623,2502.4,2501.9,5.63975]
[1729711768464,3.99623,2502.4,2502.0,3.99678]
[1729711768900,3.99623,2502.4,2501.9,9.63658]
[1729711769108,3.99623,2502.4,2501.9,5.63963]
[1729711769287,3.99644,2502.3,2501.7,10.43110946]
[1729711769491,3.99659,2502.2,2501.7,10.43105946]
[1729711769693,3.99678,2502.1,2501.7,3.0]
[1729711769867,3.99659,2502.2,2501.6,3.99744]
[1729711770198,3.99659,2502.2,2501.7,3.9972]
[1729711770402,7.99321,2502.2,2501.7,3.9972]
[1729711770766,3.99668,2502.1,2501.7,3.9972]
[1729711771597,3.99659,2502.2,2501.7,3.9972]
[1729711771898,1.6351,2502.3,2501.9,3.99686]
[1729711773507,5.63145,2502.3,2501.9,3.99686]
[1729711773797,5.63143,2502.3,2501.8,3.99705]
[1729711775193,1.6351,2502.3,2501.8,3.99707]
[1729711775675,5.63154,2502.3,2501.8,3.99699]
[1729711776111,5.53248,2502.6,2501.9,1.5772]
[1729711776402,9.52843,2502.6,2502.1,3.99651]
[1729711776606,0.0847797,2502.5,2502.2,3.99641]
[1729711777981,0.0847797,2502.5,2502.3,3.99631]
[1729711778174,3.9957,2502.7,2502.3,3.99631]
[1729711778372,0.08480988,2502.4,2502.3,3.99631]
[1729711778568,3.9957,2502.7,2502.3,3.99631]
[1729711778806,3.9957,2502.7,2502.1,3.99661]
[1729711778807,0.08486271,2502.4,2502.1,3.99661]
[1729711778987,3.99595,2502.6,2502.1,3.99661]
[1729711779284,3.99595,2502.6,2502.1,3.99655]
[1729711779611,0.08486271,2502.5,2502.1,3.99655]
[1729711779989,4.08088271,2502.5,2502.1,3.99655]
[1729711780383,0.08486271,2502.5,2502.1,3.99655]
[1729711780593,4.08086271,2502.5,2502.1,3.99655]
[1729711780990,4.08086271,2502.5,2502.1,7.99311]
[1729711781284,0.08486271,2502.5,2502.1,3.99655]
[1729711781497,4.08087271,2502.5,2502.1,3.99655]
[1729711781806,4.08087271,2502.5,2501.7,3.99719]
[1729711781807,3.99671,2502.1,2501.7,3.99719]
[1729711782013,3.9965,2502.2,2501.7,3.99719]
[1729711782183,3.99666,2502.1,2501.6,5.58996]
[1729711782386,4.08152271,2502.1,2501.6,6.04922]
[1729711782973,8.07828271,2502.1,2501.6,6.04922]
[1729711783202,4.08152271,2502.1,2501.6,6.04922]
[1729711783414,8.07827271,2502.1,2501.6,6.04922]
[1729711783596,8.07827271,2502.1,2501.3,4.78797946]
[1729711783597,3.99702,2501.9,2501.4,3.99765]
[1729711783803,3.99702,2501.9,2501.5,3.99757]
[1729711783971,0.08474196,2501.8,2501.6,3.99743]
[1729711784171,3.99676,2502.1,2501.4,3.99765]
[1729711784172,3.99686,2502.0,2501.5,3.99748]
[1729711784421,0.08474196,2501.7,2501.5,3.99748]
[1729711784574,3.99671,2502.1,2501.6,3.99744]
[1729711784774,3.99671,2502.1,2501.7,3.99726]
[1729711785177,3.99702,2501.9,2501.5,3.99748]
[1729711785385,3.99702,2501.9,2501.5,3.99754]
[1729711785691,3.99702,2501.9,2501.4,3.99773]
[1729711786005,3.99702,2501.9,2501.2,6.99794]
[1729711786006,3.99718,2501.8,2501.2,6.99794]
[1729711786177,3.99718,2501.8,2501.4,3.99776]
[1729711786517,3.99711,2501.9,2501.4,7.99543]
[1729711786811,3.99706,2501.9,2501.4,3.99767]
[1729711786979,3.99706,2501.9,2501.2,5.42123752]
[1729711787180,3.99719,2501.8,2501.4,3.99775]
[1729711787811,3.99722,2501.8,2501.3,3.99789]
[1729711788014,3.99722,2501.8,2501.2,3.99794]
[1729711788015,3.99722,2501.8,2501.4,3.99768]
[1729711788880,3.99722,2501.8,2501.2,3.99794]
[1729711789215,3.99736,2501.7,2501.3,3.99791]
[1729711790597,3.99712,2501.8,2501.3,3.99791]
[1729711791708,0.08429661,2501.7,2501.4,3.99773]
[1729711791911,4.08158661,2501.7,2501.3,1.33682314]
[1729711792115,0.08429661,2501.6,2501.3,1.33682314]
[1729711792416,0.08429661,2501.6,2501.3,3.99789]
[1729711792639,0.08429661,2501.6,2501.2,3.99801]
[1729711792830,0.08429661,2501.6,2501.2,3.99799]
[1729711793137,0.08429661,2501.6,2501.3,3.99783]
[1729711793519,0.08137618,2501.5,2501.3,3.99783]
[1729711793842,3.99713,2501.8,2501.3,3.99783]
[1729711794016,3.99713,2501.8,2501.4,3.99775]
[1729711794343,3.99713,2501.8,2501.4,7.99544]
[1729711794644,3.99713,2501.8,2501.4,3.99769]
[1729711794801,3.99713,2501.8,2501.4,7.7402714]
[1729711795242,7.99436,2501.8,2501.4,7.7402714]
[1729711795415,7.99436,2501.8,2501.4,3.7425814]
[1729711795755,7.99436,2501.8,2500.9,3.53913799]
[1729711795756,1.5882,2501.5,2500.9,0.53913799]
[1729711795903,3.99817,2501.2,2500.9,0.53913799]
[1729711796409,3.99789,2501.4,2500.9,4.53768799]
[1729711796606,1.5882,2501.5,2500.9,4.28171939]
[1729711796840,1.5882,2501.5,2501.1,7.7407814]
[1729711797212,1.5882,2501.5,2501.2,3.99802]
[1729711797427,3.99721,2501.8,2501.5,3.99759]
[1729711797428,1.5721,2501.8,2501.5,3.99759]
[1729711797765,1.5721,2501.8,2501.5,7.7401714]
[1729711798048,5.56884,2502.1,2501.7,3.7425814]
[1729711798708,1.5721,2502.1,2501.7,3.7425814]
[1729711798940,3.99698,2501.9,2501.5,7.7401714]
[1729711800445,5.56879,2502.1,2501.7,7.7397514]
[1729711801240,5.56876,2502.1,2501.7,3.7425814]
[1729711801446,5.56876,2502.1,2501.7,7.7398314]
[1729711801644,9.56552,2502.1,2501.7,3.7425814]
[1729711801852,5.56876,2502.1,2501.7,3.7425814]
[1729711802211,5.56876,2502.1,2501.7,7.7397714]
[1729711802639,5.56876,2502.1,2501.7,3.7425814]
[1729711802942,3.99681,2502.0,2501.7,3.7425814]
[1729711803150,3.9968,2502.0,2501.5,7.7401214]
[1729711803442,7.994,2501.9,2501.5,7.7401214]
[1729711803784,3.99696,2501.9,2501.5,3.7425814]
[1729711804052,3.99713,2501.8,2501.5,3.7425814]
[1729711804258,7.99435,2501.8,2501.3,9.3578214]
[1729711804552,7.99435,2501.8,2501.3,3.7425814]
[1729711804553,3.99737,2501.7,2501.3,3.7425814]
[1729711805112,3.99745,2501.6,2501.3,3.7425814]
[1729711805541,3.99721,2501.8,2501.3,7.7404114]
[1729711805955,3.99721,2501.8,2501.4,3.99774]
[1729711806922,3.9972,2501.8,2501.4,3.99774]
[1729711807337,3.99738,2501.7,2501.3,3.7425814]
[1729711807657,3.99739,2501.7,2501.2,3.99805]
[1729711808070,3.99746,2501.6,2501.2,3.99805]
[1729711808228,5.56886,2502.1,2501.3,3.7425814]
[1729711808229,3.99706,2501.9,2501.3,3.7425814]
[1729711808429,3.99741,2501.7,2501.3,3.7425814]
[1729711809044,5.56875,2502.1,2501.3,3.7425814]
[1729711809434,3.9974,2501.7,2501.3,7.7404214]
[1729711809647,3.99714,2501.8,2501.3,7.7404014]
[1729711810362,3.99713,2501.8,2501.4,3.99773]
[1729711810562,7.99414,2501.9,2501.4,3.99773]
[1729711810727,3.99706,2501.9,2501.4,3.99773]
[1729711811634,3.99712,2501.8,2501.4,3.99773]
[1729711812349,3.99733,2501.7,2501.3,4.80911805]
[1729711812570,3.9978,2501.4,2501.1,5.3344814]
[1729711812858,3.99777,2501.4,2501.0,3.99826]
[1729711813058,3.99777,2501.4,2500.9,5.93946168]
[1729711813262,3.99777,2501.4,2500.9,7.1890819]
[1729711813463,5.60541,2501.5,2501.0,3.99832]
[1729711814032,1.6078,2501.5,2501.1,3.99816]
[1729711814235,3.99767,2501.5,2501.0,7.7409614]
[1729711814554,3.99702,2501.9,2501.3,1.661]
[1729711814733,3.99721,2501.8,2501.4,3.99771]
[1729711815335,3.99721,2501.8,2501.3,2.20935447]
[1729711815546,1.6126,2502.1,2501.3,2.20935447]
[1729711815837,3.99717,2501.8,2501.3,5.65883]
[1729711816248,3.99717,2501.8,2501.4,3.99775]
[1729711816639,3.99735,2501.7,2501.3,5.65891]
[1729711817137,0.08134597,2501.6,2501.3,5.65891]
[1729711818153,0.08134597,2501.6,2501.4,3.7425814]
[1729711818814,3.99735,2501.7,2501.4,3.7425814]
[1729711819132,0.08128548,2501.6,2501.4,3.7425814]
[1729711819336,7.99475,2501.7,2501.4,3.7425814]
[1729711819536,0.08128548,2501.5,2501.4,3.7425814]
[1729711819733,3.99735,2501.7,2501.4,3.7425814]
[1729711819972,0.08128548,2501.5,2501.4,3.7425814]
[1729711820173,3.99735,2501.7,2501.4,3.7425814]
[1729711820335,3.996,2502.5,2501.9,3.99692]
[1729711820535,3.9964,2502.3,2502.0,3.7425814]
[1729711820970,3.99579,2502.7,2502.2,7.7389914]
[1729711821139,3.99603,2502.5,2502.2,3.7425814]
[1729711821337,7.99212,2502.5,2502.2,3.7425814]
[1729711821538,7.99212,2502.5,2502.1,1.5167]
[1729711821852,1.5955,2502.9,2502.0,3.7425814]
[1729711822052,3.99632,2502.3,2501.9,1.5167]
[1729711822578,3.99672,2502.1,2501.8,3.7425814]
[1729711822984,3.99643,2502.3,2501.8,7.7396914]
[1729711823191,3.99617,2502.4,2502.2,3.7425814]
[1729711824045,3.99561,2502.8,2502.3,1.6161]
[1729711824346,1.6304,2502.9,2502.2,3.7425814]
[1729711824347,3.99577,2502.7,2502.2,3.7425814]
[1729711824549,3.99592,2502.6,2502.2,3.7425814]
[1729711825376,3.99607,2502.5,2502.2,3.7425814]
[1729711826547,3.99619,2502.4,2502.2,3.7425814]
[1729711826747,3.99607,2502.5,2502.2,3.7425814]
[1729711827647,3.99607,2502.5,2502.0,3.7425814]
[1729711827959,7.99221,2502.5,2502.0,8.67055554]
[1729711828383,3.99607,2502.5,2502.0,8.67055554]
[1729711828951,0.07906349,2502.4,2502.0,8.67055554]
[1729711830120,0.07906349,2502.4,2502.3,1.5873]
[1729711830403,3.99576,2502.7,2502.3,1.5873]
[1729711830605,0.07903322,2502.4,2502.3,1.5873]
[1729711830805,0.07903322,2502.4,2501.1,0.8172557]
[1729711830806,3.99719,2501.8,2501.1,0.8172557]
[1729711830977,3.99804,2501.3,2501.0,1.5873]
[1729711831171,3.99804,2501.3,2501.0,0.85611822]
[1729711831390,3.99808,2501.2,2500.9,0.41714168]
[1729711831692,3.99825,2501.1,2500.9,0.41714168]
[1729711831899,4.07762799,2501.2,2500.9,0.41714168]
[1729711831900,8.07580799,2501.2,2500.9,0.41714168]
[1729711832059,3.99808,2501.2,2500.9,0.41714168]
[1729711832265,0.07954799,2501.1,2500.9,0.41714168]
[1729711834004,3.9984,2501.0,2500.9,0.41714168]
[1729711834304,4.07794799,2501.0,2500.9,0.41714168]
[1729711836766,5.61184799,2501.0,2500.9,0.41714168]
[1729711838771,5.61035852,2501.0,2500.9,0.41714168]
[1729711849099,0.07954799,2501.0,2500.9,0.41714168]
[1729711849409,3.99826,2501.1,2500.9,1.92904168]
[1729711849616,3.99801,2501.3,2501.0,0.39259451]
[1729711849916,7.99539,2501.5,2501.0,0.39259451]
[1729711850218,3.99779,2501.4,2501.0,0.39259451]
[1729711850420,3.99794,2501.3,2501.1,0.60642176]
[1729711850712,3.99794,2501.3,2501.0,0.39259451]
[1729711851008,3.99779,2501.4,2501.0,0.39259451]
[1729711851473,0.07703371,2501.3,2501.0,0.39259451]
[1729711851673,4.07502371,2501.3,2501.0,0.39259451]
[1729711851874,3.99815,2501.2,2501.0,0.39259451]
[1729711852299,4.07527371,2501.1,2500.9,1.92904168]
[1729711852483,4.07527371,2501.1,2500.9,0.41714168]
[1729711852901,3.9984,2501.0,2500.9,0.41714168]
[1729711853528,4.07543371,2501.0,2500.9,0.41714168]
[1729711853934,0.07703371,2501.0,2500.9,0.41714168]
[1729711854228,4.07543371,2501.0,2500.9,0.41714168]
[1729711855628,0.07703371,2501.0,2500.9,0.41714168]
[1729711855830,0.07703371,2501.0,2500.9,0.65854619]
[1729711856129,0.07732921,2501.0,2500.9,0.65854619]
[1729711856496,4.07572921,2501.0,2500.9,0.65854619]
[1729711856713,0.07732921,2501.0,2500.9,0.41714168]
[1729711856915,4.07572921,2501.0,2500.9,0.41714168]
[1729711857424,0.07732921,2501.0,2500.9,0.41714168]
[1729711857906,4.07572921,2501.0,2500.9,0.41714168]
[1729711858834,4.07572921,2501.0,2500.2,3.99958]
[1729711858835,7.81831061,2501.0,2500.2,3.99958]
[1729711859020,2.10011694,2500.5,2500.1,1.93073214]
[1729711859214,3.99952,2500.3,2500.1,1.93073214]
[1729711859425,6.99984,2500.1,2500.0,2.00332357]
[1729711859729,8.64064,2500.1,2500.0,2.00332357]
[1729711859929,5.71796921,2500.1,2500.0,2.00332357]
[1729711860345,4.07716921,2500.1,2500.0,2.00332357]
[1729711860500,0.07732921,2500.1,2500.0,2.00332357]
[1729711860700,4.07716921,2500.1,2500.0,2.00332357]
[1729711861001,4.07716921,2500.1,2500.0,0.0075899]
[1729711861809,0.07732921,2500.1,2500.0,2.1665899]
[1729711862014,0.07732921,2500.1,2500.0,2.38324889]
[1729711862309,3.99936,2500.4,2500.3,0.01]
[1729711862502,3.99984,2500.1,2500.0,0.0075899]
[1729711862710,4.75669482,2500.1,2500.0,0.0075899]
[1729711862908,8.49927622,2500.1,2500.0,0.0075899]
[1729711863320,11.49927622,2500.1,2500.0,0.0075899]
[1729711864707,10.7424214,2500.1,2500.0,0.0075899]
[1729711865742,12.3101214,2500.1,2500.0,0.0075899]
[1729711866149,12.38593414,2500.1,2500.0,0.0075899]
[1729711869005,16.12851554,2500.1,2500.0,0.0075899]
[1729711872544,12.38593414,2500.1,2500.0,0.0075899]
[1729711877681,12.38593414,2500.1,2500.0,9.9e-06]
[1729711877838,20.32619073,2500.1,2500.0,9.9e-06]
[1729711878039,20.32619073,2500.1,2498.2,0.01]
[1729711878040,1.5093,2499.7,2498.2,1.601]
[1729711878272,1.5093,2499.7,2498.1,0.01]
[1729711878273,4.00296,2498.2,2498.1,0.01]
[1729711878486,8.00623,2498.1,2497.9,1.611]
[1729711878638,4.00243,2498.5,2497.6,0.5909983]
[1729711878639,4.0032,2498.0,2497.6,0.5909983]
[1729711878839,4.00359,2497.8,2497.6,2.1819983]
[1729711879090,0.07381013,2497.7,2497.6,2.40219813]
[1729711879323,0.07381013,2497.7,2497.6,2.1819983]
[1729711879324,4.00368,2497.7,2497.6,2.1819983]
[1729711879528,4.07749013,2497.7,2497.6,0.5809983]
[1729711880746,0.07381013,2497.7,2497.6,6.2531383]
[1729711880898,0.41747849,2499.2,2497.6,6.2531383]
[1729711880899,5.03304068,2499.1,2498.4,5.56094]
[1729711881102,4.00103,2499.4,2498.8,0.01]
[1729711881349,4.00074,2499.6,2498.8,0.01]
[1729711881350,0.06748826,2499.3,2499.0,0.02]
[1729711881636,4.00081,2499.5,2499.0,0.02]
[1729711881845,0.06748826,2499.2,2499.0,0.01]
[1729711882004,4.00129,2499.2,2499.0,0.01]
[1729711882200,0.06748826,2499.1,2498.9,0.01]
[1729711882454,0.06748826,2499.1,2499.0,0.01]
[1729711882921,0.06748826,2499.1,2498.7,1.5584]
[1729711883121,4.00184,2498.9,2498.7,1.5484]
[1729711883322,4.06940826,2498.8,2498.7,1.5484]
[1729711883726,0.06748826,2498.8,2498.7,1.5484]
[1729711884157,4.00154,2499.1,2498.7,1.5484]
[1729711884315,1.6568,2499.6,2498.7,1.5484]
[1729711884316,4.00137,2499.2,2498.8,0.56]
[1729711884646,4.0012,2499.3,2498.9,0.76084]
[1729711884852,0.06748826,2499.1,2498.9,0.76084]
[1729711885018,4.00121,2499.3,2498.9,0.76084]
[1729711885215,0.06748826,2499.0,2498.9,0.76084]
[1729711885433,4.00121,2499.3,2498.9,0.76084]
[1729711885629,0.06748826,2499.0,2498.9,0.77084]
[1729711885843,4.00091,2499.5,2499.1,0.01]
[1729711886018,4.00105,2499.4,2499.3,0.01]
[1729711886944,4.00091,2499.5,2499.3,0.01]
[1729711887647,4.00089,2499.5,2499.3,0.01]
[1729711887852,4.00096,2499.4,2499.3,0.01]
[1729711888149,4.00089,2499.5,2499.3,0.01]
[1729711889437,5.6444,2499.9,2499.0,0.56]
[1729711889438,4.00096,2499.4,2499.0,0.56]
[1729711889634,4.00065,2499.6,2499.0,0.01]
[1729711889828,4.00137,2499.2,2499.0,0.01]
[1729711890756,4.00112,2499.3,2499.0,0.01]
[1729711891260,4.00081,2499.5,2499.0,0.57]
[1729711891553,8.00088,2499.8,2499.3,1.6316]
[1729711891759,4.00075,2499.6,2499.4,0.01]
[1729711892049,4.00064,2499.6,2499.4,0.01]
[1729711893158,4.00086,2499.5,2499.3,1.6316]
[1729711893319,4.00086,2499.5,2499.4,0.01]
[1729711894353,4.00061,2499.7,2499.4,0.01]
[1729711894354,4.00064,2499.6,2499.4,0.01]
[1729711894616,8.00083,2499.8,2499.4,0.01]
[1729711894823,4.00078,2499.6,2499.4,0.01]
[1729711895057,4.0008,2499.5,2499.4,0.01]
[1729711895245,4.00078,2499.6,2499.4,0.01]
[1729711895421,8.00148,2499.6,2499.4,0.01]
[1729711895754,4.00073,2499.6,2499.4,0.01]
[1729711895957,8.00146,2499.6,2499.4,0.01]
[1729711896120,0.06932056,2499.5,2499.4,0.01]
[1729711898459,4.00049,2499.7,2499.4,0.01]
[1729711898635,0.06932056,2499.5,2499.4,0.01]
[1729711899161,4.00049,2499.7,2499.4,0.01]
[1729711899363,0.06932056,2499.6,2499.4,0.01]
[1729711899755,4.06998056,2499.6,2499.4,0.01]
[1729711900070,0.06932056,2499.6,2499.4,0.01]
[1729711900427,4.06996056,2499.6,2499.4,0.01]
[1729711901869,4.06996056,2499.6,2499.5,0.01]
[1729711902166,0.06932056,2499.6,2499.5,0.01]
[1729711902372,4.07005056,2499.6,2499.3,1.6316]
[1729711902531,4.00087,2499.5,2499.3,1.6316]
[1729711902733,4.06806835,2499.4,2499.0,1.568]
[1729711902989,4.0013,2499.2,2499.0,1.558]
[1729711903671,4.00096,2499.4,2499.0,1.558]
[1729711903672,0.06710835,2499.1,2499.0,1.558]
[1729711904058,4.00113,2499.3,2499.2,0.01]
[1729711904369,4.00096,2499.4,2499.2,0.01]
[1729711904930,4.00112,2499.3,2499.2,0.01]
[1729711905148,4.00144,2499.1,2499.0,1.558]
[1729711905370,4.00096,2499.4,2498.8,0.01]
[1729711905589,4.00166,2499.0,2498.8,0.01]
[1729711905793,4.00166,2499.0,2498.8,0.02]
[1729711906088,4.00138,2499.2,2498.8,0.02]
[1729711907095,8.00212,2499.4,2499.1,0.01]
[1729711907253,4.00119,2499.3,2499.1,0.01]
[1729711908669,8.00189,2499.5,2499.1,0.01]
[1729711909021,4.00094,2499.5,2499.1,0.01]
[1729711909179,4.00094,2499.5,2499.2,1.5145]
[1729711910564,4.00064,2499.6,2499.2,1.5145]
[1729711910857,4.00108,2499.4,2499.1,0.01]
[1729711911196,4.06832835,2499.3,2499.0,1.5245]
[1729711911577,4.06832835,2499.3,2499.1,0.01]
[1729711912299,0.06710835,2499.3,2499.1,0.01]
[1729711912901,4.00088,2499.5,2499.1,0.01]
[1729711913117,0.06700185,2499.2,2499.1,0.01]
[1729711913275,4.00074,2499.6,2499.1,0.618618]
[1729711913611,4.00083,2499.5,2499.1,0.618618]
[1729711913772,4.06783185,2499.5,2499.1,0.618618]
[1729711914370,0.06700185,2499.5,2499.2,0.01]
[1729711914579,4.00033,2499.8,2499.4,1.6758]
[1729711914779,0.06700185,2499.7,2499.4,1.6758]
[1729711914975,4.00033,2499.8,2499.4,1.6758]
[1729711915277,0.06702467,2499.7,2499.4,1.6758]
[1729711915493,4.06751467,2499.7,2499.4,1.6758]
[1729711915664,4.00049,2499.7,2499.4,1.6758]
[1729711915993,0.06702467,2499.6,2499.4,1.6758]
[1729711916193,0.06702467,2499.6,2499.4,2.31993418]
[1729711916575,4.00034,2499.8,2499.4,2.31993418]
[1729711916765,0.06702467,2499.7,2499.4,2.31993418]
[1729711916960,4.00053,2499.7,2499.4,2.31993418]
[1729711917170,0.06702467,2499.6,2499.4,2.31993418]
[1729711917375,4.00034,2499.8,2499.4,2.31993418]
[1729711917687,0.06702467,2499.7,2499.4,2.31993418]
[1729711918061,4.00107,2499.4,2499.2,0.01]
[1729711918279,4.00086,2499.5,2499.3,0.01]
[1729711918697,0.06702467,2499.4,2499.3,0.01]
[1729711919274,4.06798467,2499.4,2499.2,0.01]
[1729711919671,4.06798467,2499.4,2499.3,0.01]
[1729711920160,0.06702467,2499.4,2499.3,0.01]
[1729711923683,4.00072,2499.6,2499.3,0.01]
[1729711923895,4.06798467,2499.4,2499.2,0.01]
[1729711924198,0.06702467,2499.3,2499.2,0.01]
[1729711925798,4.0008,2499.5,2499.3,0.01]
[1729711926265,0.06714641,2499.4,2499.3,0.01]
[1729711927163,0.06714641,2499.4,2499.2,0.01]
[1729711927164,4.06810641,2499.4,2499.2,0.01]
[1729711927361,4.06810641,2499.4,2499.2,0.02]
[1729711928401,5.62415641,2499.4,2499.0,0.01]
[1729711928702,0.06714641,2499.4,2499.2,0.01]
[1729711929078,4.06811641,2499.4,2499.2,0.01]
[1729711929471,0.06714641,2499.4,2499.2,0.01]
[1729711929671,4.06811641,2499.4,2499.2,0.01]
[1729711929999,4.00112,2499.3,2499.0,0.02]
[1729711930365,4.00097,2499.4,2498.8,1.5942]
[1729711930366,4.00171,2499.0,2498.8,1.5942]
[1729711930905,4.06888358,2498.9,2498.8,0.01]
[1729711931068,4.06888358,2498.9,2498.5,1.5907]
[1729711931069,4.002,2498.8,2498.5,1.5907]
[1729711931267,4.0024,2498.5,2498.2,2.4279557]
[1729711931470,4.00264,2498.4,2498.2,0.02]
[1729711931901,0.06698662,2498.4,2498.2,0.02]
[1729711932105,0.06698662,2498.4,2498.2,0.01]
[1729711932316,0.06698662,2498.4,2497.7,1.02671183]
[1729711932317,4.00331,2498.0,2497.6,1.398254]
[1729711932472,4.00331,2498.0,2497.8,0.01]
[1729711932666,1.6057,2498.3,2497.6,0.5809983]
[1729711932667,4.07006503,2497.9,2497.6,0.5809983]
[1729711932898,4.00352,2497.8,2497.6,0.5809983]
[1729711933079,4.07006503,2497.9,2497.6,0.5909983]
[1729711933379,0.06668219,2497.7,2497.6,0.5909983]
[1729711933581,4.00336,2497.9,2497.6,0.5909983]
[1729711934180,0.06627106,2497.8,2497.6,0.5909983]
[1729711934681,0.06627106,2497.8,2497.7,0.01]
[1729711934869,4.00308,2498.1,2497.7,2.144]
[1729711935070,0.06611113,2497.8,2497.7,2.144]
[1729711935266,4.00327,2498.0,2497.7,2.144]
[1729711935467,0.06611113,2497.8,2497.7,2.144]
[1729711935672,4.00327,2498.0,2497.7,2.144]
[1729711935933,0.06611113,2497.8,2497.7,0.57]
[1729711936210,4.06967113,2497.8,2497.6,0.5809983]
[1729711936383,4.00368,2497.7,2497.6,0.5809983]
[1729711936897,4.06979113,2497.7,2497.6,0.5809983]
[1729711939533,0.06611113,2497.7,2497.6,0.5809983]
[1729711939810,0.06611113,2497.7,2497.6,6.7778383]
[1729711940009,5.64117,2498.5,2498.0,0.01]
[1729711940708,5.64117,2498.5,2498.1,0.01]
[1729711940709,8.00496,2498.5,2498.1,0.01]
[1729711941213,4.00187,2498.9,2498.6,0.01]
[1729711941415,4.0019,2498.9,2498.6,0.01]
[1729711941598,4.00193,2498.8,2498.6,0.01]
[1729711941971,4.0019,2498.9,2498.6,0.01]
[1729711942171,4.0019,2498.9,2498.7,0.01]
[1729711942422,8.00312,2499.1,2498.7,0.01]
[1729711942587,4.00096,2499.4,2499.0,0.01]
[1729711942816,4.00096,2499.4,2499.2,0.01]
[1729711943015,4.0024,2498.5,2498.0,0.01]
[1729711943249,4.00273,2498.3,2498.2,0.01]
[1729711943411,4.0024,2498.5,2498.2,0.01]
[1729711943605,4.00212,2498.7,2498.2,0.01]
[1729711943808,8.00436,2498.7,2498.4,0.01]
[1729711944146,4.00192,2498.8,2498.4,0.02]
[1729711945447,8.00365,2498.9,2498.4,0.02]
[1729711945627,4.00179,2498.9,2498.6,0.01]
[1729711945947,4.00203,2498.8,2498.6,0.01]
[1729711946127,4.00208,2498.7,2498.6,0.01]
[1729711947443,4.00194,2498.8,2498.6,0.01]
[1729711947647,4.00208,2498.7,2498.6,0.01]
[1729711947820,4.00229,2498.6,2498.4,0.01]
[1729711948021,4.00208,2498.7,2498.5,0.01]
[1729711948335,4.00189,2498.9,2498.5,0.01]
[1729711948712,8.00425,2498.7,2498.5,0.01]
[1729711948930,4.00224,2498.6,2498.5,0.01]
[1729711949152,4.0021,2498.7,2498.5,0.01]
[1729711950024,4.00224,2498.6,2498.5,0.01]
[1729711950220,4.00204,2498.8,2498.5,0.01]
[1729711950462,4.00222,2498.7,2498.5,0.01]
[1729711950623,4.00222,2498.7,2498.6,0.01]
[1729711952437,4.00231,2498.6,2498.4,0.01]
[1729711952821,4.00272,2498.3,2498.2,0.01]
[1729711953023,4.00298,2498.2,2498.0,0.01]
[1729711953434,4.00274,2498.3,2498.0,0.01]
[1729711953636,8.00555,2498.3,2498.0,0.01]
[1729711953842,4.00248,2498.5,2498.0,0.01]
[1729711954080,1.5537,2498.7,2498.3,0.01]
[1729711954081,4.00231,2498.6,2498.3,0.01]
[1729711954213,4.00203,2498.8,2498.4,0.01]
[1729711954559,5.63317,2499.2,2498.8,0.01]
[1729711954754,4.00148,2499.1,2498.9,0.01]
[1729711954939,4.0016,2499.0,2498.9,0.01]
[1729711955514,4.00145,2499.1,2498.9,0.01]